fUSD/lending_fUSD_20260517
["ID","MTS","AMOUNT","RATE_DAILY","PERIOD"]
[422443049,1778950239000,-175.84951721,0.0002,2]
[422443052,1778950239000,-12697.45,0.0002,2]
[422443062,1778950239000,-216.0,0.00021,2]
[422443051,1778950239000,-316.0,0.0002,2]
[422443053,1778950239000,-153.85193961,0.0002,20]
[422443059,1778950239000,-162.0,0.00021,2]
[422443030,1778950239000,-175.05,0.00018668,2]
[422443045,1778950239000,-172.0,0.0002,2]
[422443037,1778950239000,-156.0,0.0002,2]
[422443016,1778950239000,-176.12,0.00016767,2]
[422443029,1778950239000,-165.19732035,0.000186,2]
[422443056,1778950239000,-4523.3975716,0.00020534,2]
[422443013,1778950239000,-153.7,0.00016221,2]
[422443008,1778950239000,-151.0,0.00016157,2]
[422443011,1778950239000,-151.0,0.00016157,2]
[422443010,1778950239000,-151.0,0.00016157,2]
[422443009,1778950239000,-151.0,0.00016157,2]
[422443012,1778950239000,-151.0,0.00016157,2]
[422443015,1778950239000,-156.61,0.00016712,2]
[422443017,1778950239000,-2727.04759528,0.00016904,2]
[422443014,1778950239000,-4523.3975716,0.0001626,2]
[422443025,1778950239000,-151.0,0.0001841,2]
[422443019,1778950239000,-2000.0,0.00017104,2]
[422443020,1778950239000,-474.0,0.00017384,2]
[422443021,1778950239000,-604.0,0.00017525,2]
[422443018,1778950239000,-153.7,0.00017075,2]
[422443024,1778950239000,-3449.15395846,0.00018316,2]
[422443022,1778950239000,-756.0,0.00017672,2]
[422443023,1778950239000,-153.7,0.00017928,2]
[422443026,1778950239000,-366.01624008,0.000185,2]
[422443027,1778950239000,-165.19732035,0.000185,2]
[422443028,1778950239000,-366.01624008,0.000186,2]
[422443031,1778950239000,-24753.97669555,0.00018722,2]
[422443032,1778950239000,-366.01624008,0.000188,2]
[422443038,1778950239000,-161.0,0.0002,2]
[422443060,1778950239000,-169.0,0.00021,2]
[422443101,1778950239000,-2248.9320315,0.00021189,2]
[422443058,1778950239000,-516.0,0.00021,2]
[422443086,1778950239000,-500.0,0.00021189,2]
[422443089,1778950239000,-500.0,0.00021189,2]
[422443085,1778950239000,-500.0,0.00021189,2]
[422443090,1778950239000,-500.0,0.00021189,2]
[422443088,1778950239000,-2248.9320315,0.00021189,2]
[422443094,1778950239000,-2248.9320315,0.00021189,2]
[422443098,1778950239000,-500.0,0.00021189,2]
[422443105,1778950239000,-520.91350649,0.00021189,2]
[422443096,1778950239000,-2248.9320315,0.00021189,2]
[422443097,1778950239000,-500.0,0.00021189,2]
[422443108,1778950239000,-500.0,0.00021189,2]
[422443104,1778950239000,-500.0,0.00021189,2]
[422443100,1778950239000,-500.0,0.00021189,2]
[422443099,1778950239000,-500.0,0.00021189,2]
[422443095,1778950239000,-392.32961775,0.00021189,2]
[422443102,1778950239000,-500.0,0.00021189,2]
[422443103,1778950239000,-500.0,0.00021189,2]
[422443107,1778950239000,-500.0,0.00021189,2]
[422443106,1778950239000,-2248.9320315,0.00021189,2]
[422443110,1778950239000,-500.0,0.00021189,2]
[422443111,1778950239000,-2248.9320315,0.00021189,2]
[422443109,1778950239000,-500.0,0.00021189,2]
[422443055,1778950239000,-151.0,0.00020381,2]
[422443087,1778950239000,-500.0,0.00021189,2]
[422443084,1778950239000,-500.0,0.00021189,2]
[422443093,1778950239000,-500.0,0.00021189,2]
[422443080,1778950239000,-5484.58615597,0.00021182,2]
[422443061,1778950239000,-687.0,0.00021,2]
[422443092,1778950239000,-500.0,0.00021189,2]
[422443057,1778950239000,-404.0,0.00021,2]
[422443065,1778950239000,-10000.0,0.00021082,2]
[422443064,1778950239000,-316.0,0.00021,2]
[422443063,1778950239000,-172.0,0.00021,2]
[422443074,1778950239000,-1084.73905795,0.00021181,5]
[422443067,1778950239000,-5228.94594966,0.00021089,2]
[422443068,1778950239000,-601.17344496,0.00021089,2]
[422443073,1778950239000,-1084.73905795,0.00021181,5]
[422443069,1778950239000,-11064.80680074,0.00021089,2]
[422443066,1778950239000,-295.88566067,0.00021089,2]
[422443079,1778950239000,-389.74,0.00021182,2]
[422443071,1778950239000,-207.00079474,0.00021172,2]
[422443072,1778950239000,-151.0,0.00021179,2]
[422443075,1778950239000,-1096.81108638,0.00021181,5]
[422443076,1778950239000,-121319.62876469,0.00021182,2]
[422443077,1778950239000,-74644.94439055,0.00021182,2]
[422443078,1778950239000,-500.0,0.00021182,2]
[422443083,1778950239000,-308.72335829,0.00021189,2]
[422443081,1778950239000,-906.56824085,0.00021182,2]
[422443082,1778950239000,-2296754.53244794,0.00021182,2]
[422443091,1778950239000,-500.0,0.00021189,2]
[422443070,1778950239000,-340.1146212,0.000211,2]
[422443152,1778950240000,-2248.9320315,0.00021189,2]
[422443147,1778950240000,-2248.9320315,0.00021189,2]
[422443149,1778950240000,-2248.9320315,0.00021189,2]
[422443153,1778950240000,-2248.9320315,0.00021189,2]
[422443154,1778950240000,-2248.9320315,0.00021189,2]
[422443151,1778950240000,-2248.9320315,0.00021189,2]
[422443156,1778950240000,-2248.9320315,0.00021189,2]
[422443148,1778950240000,-2248.9320315,0.00021189,2]
[422443146,1778950240000,-2248.9320315,0.00021189,2]
[422443155,1778950240000,-2248.9320315,0.00021189,2]
[422443158,1778950240000,-2248.9320315,0.00021189,2]
[422443150,1778950240000,-2248.9320315,0.00021189,2]
[422443157,1778950240000,-2248.9320315,0.00021189,2]
[422443181,1778950240000,-3440.24287625,0.00021189,2]
[422443168,1778950240000,-2248.9320315,0.00021189,2]
[422443159,1778950240000,-2248.9320315,0.00021189,2]
[422443161,1778950240000,-2248.9320315,0.00021189,2]
[422443162,1778950240000,-2248.9320315,0.00021189,2]
[422443160,1778950240000,-2248.9320315,0.00021189,2]
[422443165,1778950240000,-2248.9320315,0.00021189,2]
[422443169,1778950240000,-2248.9320315,0.00021189,2]
[422443167,1778950240000,-2248.9320315,0.00021189,2]
[422443164,1778950240000,-2248.9320315,0.00021189,2]
[422443166,1778950240000,-2248.9320315,0.00021189,2]
[422443182,1778950240000,-3440.24287625,0.00021189,2]
[422443170,1778950240000,-2248.9320315,0.00021189,2]
[422443144,1778950240000,-2248.9320315,0.00021189,2]
[422443163,1778950240000,-2248.9320315,0.00021189,2]
[422443145,1778950240000,-2248.9320315,0.00021189,2]
[422443114,1778950240000,-328.43018494,0.00021189,2]
[422443135,1778950240000,-2248.9320315,0.00021189,2]
[422443117,1778950240000,-500.0,0.00021189,2]
[422443118,1778950240000,-2248.9320315,0.00021189,2]
[422443112,1778950240000,-500.0,0.00021189,2]
[422443116,1778950240000,-402.73482755,0.00021189,2]
[422443115,1778950240000,-2248.9320315,0.00021189,2]
[422443172,1778950240000,-2248.9320315,0.00021189,2]
[422443120,1778950240000,-2248.9320315,0.00021189,2]
[422443121,1778950240000,-500.0,0.00021189,2]
[422443119,1778950240000,-500.0,0.00021189,2]
[422443131,1778950240000,-2248.9320315,0.00021189,2]
[422443130,1778950240000,-2248.9320315,0.00021189,2]
[422443122,1778950240000,-500.0,0.00021189,2]
[422443123,1778950240000,-2248.9320315,0.00021189,2]
[422443124,1778950240000,-500.0,0.00021189,2]
[422443125,1778950240000,-2248.9320315,0.00021189,2]
[422443126,1778950240000,-500.0,0.00021189,2]
[422443127,1778950240000,-2248.9320315,0.00021189,2]
[422443128,1778950240000,-500.0,0.00021189,2]
[422443129,1778950240000,-2248.9320315,0.00021189,2]
[422443132,1778950240000,-2248.9320315,0.00021189,2]
[422443142,1778950240000,-2248.9320315,0.00021189,2]
[422443133,1778950240000,-2248.9320315,0.00021189,2]
[422443139,1778950240000,-2248.9320315,0.00021189,2]
[422443143,1778950240000,-2248.9320315,0.00021189,2]
[422443140,1778950240000,-2248.9320315,0.00021189,2]
[422443141,1778950240000,-2248.9320315,0.00021189,2]
[422443136,1778950240000,-2248.9320315,0.00021189,2]
[422443137,1778950240000,-2248.9320315,0.00021189,2]
[422443134,1778950240000,-2248.9320315,0.00021189,2]
[422443138,1778950240000,-2248.9320315,0.00021189,2]
[422443177,1778950240000,-3440.24287625,0.00021189,2]
[422443171,1778950240000,-2248.9320315,0.00021189,2]
[422443178,1778950240000,-3440.24287625,0.00021189,2]
[422443222,1778950240000,-172.0,0.00022,2]
[422443210,1778950240000,-1948.9,0.00021273,2]
[422443209,1778950240000,-176.12,0.00021205,2]
[422443212,1778950240000,-877.58,0.00021273,2]
[422443211,1778950240000,-369.84,0.00021273,2]
[422443217,1778950240000,-516.0,0.00022,2]
[422443219,1778950240000,-169.0,0.00022,2]
[422443218,1778950240000,-162.0,0.00022,2]
[422443214,1778950240000,-5000.0,0.00021918,2]
[422443213,1778950240000,-1485.75,0.00021273,2]
[422443215,1778950240000,-218.44753254,0.00021918,2]
[422443216,1778950240000,-404.0,0.00022,2]
[422443225,1778950240000,-168.26882226,0.00022407,2]
[422443234,1778950240000,-687.0,0.00023,2]
[422443226,1778950240000,-168.26882226,0.00022407,2]
[422443227,1778950240000,-181.3089465,0.00022407,2]
[422443228,1778950240000,-759.42,0.00022466,2]
[422443224,1778950240000,-151.0,0.00022353,2]
[422443229,1778950240000,-218.44753254,0.00022603,2]
[422443232,1778950240000,-162.0,0.00023,2]
[422443231,1778950240000,-516.0,0.00023,2]
[422443233,1778950240000,-169.0,0.00023,2]
[422443230,1778950240000,-404.0,0.00023,2]
[422443235,1778950240000,-216.0,0.00023,2]
[422443237,1778950240000,-316.0,0.00023,2]
[422443239,1778950240000,-218.44753254,0.00023973,2]
[422443238,1778950240000,-218.44753254,0.00023288,2]
[422443236,1778950240000,-172.0,0.00023,2]
[422443173,1778950240000,-2248.9320315,0.00021189,2]
[422443221,1778950240000,-216.0,0.00022,2]
[422443220,1778950240000,-687.0,0.00022,2]
[422443223,1778950240000,-316.0,0.00022,2]
[422443201,1778950240000,-3440.24287625,0.00021189,2]
[422443204,1778950240000,-3440.24287625,0.00021189,2]
[422443175,1778950240000,-3440.24287625,0.00021189,2]
[422443180,1778950240000,-3440.24287625,0.00021189,2]
[422443176,1778950240000,-3440.24287625,0.00021189,2]
[422443179,1778950240000,-3440.24287625,0.00021189,2]
[422443183,1778950240000,-3440.24287625,0.00021189,2]
[422443185,1778950240000,-3440.24287625,0.00021189,2]
[422443187,1778950240000,-3440.24287625,0.00021189,2]
[422443193,1778950240000,-3440.24287625,0.00021189,2]
[422443195,1778950240000,-3440.24287625,0.00021189,2]
[422443188,1778950240000,-3440.24287625,0.00021189,2]
[422443189,1778950240000,-3440.24287625,0.00021189,2]
[422443186,1778950240000,-3440.24287625,0.00021189,2]
[422443194,1778950240000,-3440.24287625,0.00021189,2]
[422443192,1778950240000,-3440.24287625,0.00021189,2]
[422443174,1778950240000,-224.54594516,0.00021189,2]
[422443190,1778950240000,-3440.24287625,0.00021189,2]
[422443184,1778950240000,-3440.24287625,0.00021189,2]
[422443205,1778950240000,-3440.24287625,0.00021189,2]
[422443206,1778950240000,-3440.24287625,0.00021189,2]
[422443202,1778950240000,-3440.24287625,0.00021189,2]
[422443196,1778950240000,-3440.24287625,0.00021189,2]
[422443200,1778950240000,-3440.24287625,0.00021189,2]
[422443199,1778950240000,-3440.24287625,0.00021189,2]
[422443207,1778950240000,-4077.32489028,0.00021189,2]
[422443203,1778950240000,-3440.24287625,0.00021189,2]
[422443198,1778950240000,-3440.24287625,0.00021189,2]
[422443197,1778950240000,-3440.24287625,0.00021189,2]
[422443191,1778950240000,-3440.24287625,0.00021189,2]
[422443208,1778950240000,-314.06,0.000212,2]
[422443312,1778950241000,-1485.75,0.00025786,2]
[422443320,1778950241000,-193.99079007,0.00026276,3]
[422443316,1778950241000,-1500000.0,0.00025999,2]
[422443318,1778950241000,-218.44753254,0.00026027,2]
[422443297,1778950241000,-314.06,0.00025,7]
[422443314,1778950241000,-151.0,0.00025996,7]
[422443301,1778950241000,-150.0,0.00025585,4]
[422443306,1778950241000,-1948.9,0.00025786,2]
[422443308,1778950241000,-369.84,0.00025786,2]
[422443310,1778950241000,-877.58,0.00025786,2]
[422443299,1778950241000,-218.44753254,0.00025342,2]
[422443332,1778950241000,-150.1563238,0.00026932,4]
[422443303,1778950241000,-176.12,0.00025644,2]
[422443335,1778950241000,-1360.657,0.00026941,2]
[422443338,1778950241000,-1223.0,0.00026941,2]
[422443334,1778950241000,-150.0,0.00026932,4]
[422443336,1778950241000,-756.128,0.00026941,2]
[422443324,1778950241000,-218.44753254,0.00026712,2]
[422443326,1778950241000,-171.99539503,0.00026801,3]
[422443330,1778950241000,-504.0,0.00026932,2]
[422443328,1778950241000,-150.0,0.00026852,4]
[422443337,1778950241000,-926.0,0.00026941,2]
[422443339,1778950241000,-150.0,0.00026941,2]
[422443340,1778950241000,-150.0,0.00026941,2]
[422443343,1778950241000,-230.001,0.00026941,2]
[422443342,1778950241000,-432.422,0.00026941,2]
[422443346,1778950241000,-150.0,0.00027123,2]
[422443288,1778950241000,-188.0,0.00025,2]
[422443322,1778950241000,-151.0,0.00026296,2]
[422443295,1778950241000,-332.0,0.00025,2]
[422443344,1778950241000,-3631.0,0.00026941,2]
[422443291,1778950241000,-230.0,0.00025,2]
[422443246,1778950241000,-172.0,0.00024,2]
[422443243,1778950241000,-169.0,0.00024,2]
[422443244,1778950241000,-687.0,0.00024,2]
[422443240,1778950241000,-404.0,0.00024,2]
[422443245,1778950241000,-216.0,0.00024,2]
[422443247,1778950241000,-316.0,0.00024,2]
[422443242,1778950241000,-162.0,0.00024,2]
[422443260,1778950241000,-150.0,0.00024238,2]
[422443264,1778950241000,-150.13985587,0.00024238,2]
[422443248,1778950241000,-150.0,0.00024238,2]
[422443266,1778950241000,-150.0,0.00024238,2]
[422443262,1778950241000,-150.0,0.00024238,2]
[422443258,1778950241000,-150.0,0.00024238,2]
[422443256,1778950241000,-150.0,0.00024238,2]
[422443252,1778950241000,-150.0,0.00024238,2]
[422443254,1778950241000,-217.40567745,0.00024238,2]
[422443250,1778950241000,-150.0,0.00024238,2]
[422443270,1778950241000,-150.0,0.00024238,2]
[422443268,1778950241000,-150.0,0.00024238,2]
[422443272,1778950241000,-151.0,0.00024324,2]
[422443277,1778950241000,-1000.0,0.00024658,2]
[422443275,1778950241000,-340.11462117,0.00024567,2]
[422443279,1778950241000,-382.48,0.00024658,2]
[422443281,1778950241000,-218.44753254,0.00024658,2]
[422443285,1778950241000,-420.0,0.00025,2]
[422443283,1778950241000,-4523.3975716,0.00024807,2]
[422443286,1778950241000,-525.0,0.00025,2]
[422443289,1778950241000,-697.0,0.00025,2]
[422443287,1778950241000,-167.0,0.00025,2]
[422443293,1778950241000,-175.0,0.00025,2]
[422443349,1778950241000,-274.34450256,0.00027123,2]
[422443241,1778950241000,-516.0,0.00024,2]
[422443351,1778950241000,-176.00420823,0.00027123,2]
[422443393,1778950241000,-1692.0,0.00027123,2]
[422443392,1778950241000,-150.0,0.00027123,2]
[422443386,1778950241000,-1692.0,0.00027123,2]
[422443381,1778950241000,-1692.0,0.00027123,2]
[422443384,1778950241000,-1692.0,0.00027123,2]
[422443387,1778950241000,-1027.0,0.00027123,2]
[422443385,1778950241000,-1027.0,0.00027123,2]
[422443390,1778950241000,-1692.0,0.00027123,2]
[422443383,1778950241000,-1692.0,0.00027123,2]
[422443391,1778950241000,-1027.0,0.00027123,2]
[422443388,1778950241000,-1692.0,0.00027123,2]
[422443389,1778950241000,-1027.0,0.00027123,2]
[422443395,1778950241000,-150.0,0.00027123,2]
[422443394,1778950241000,-1027.0,0.00027123,2]
[422443405,1778950241000,-1692.0,0.00027123,2]
[422443406,1778950241000,-200.0,0.00027123,2]
[422443401,1778950241000,-200.0,0.00027123,2]
[422443404,1778950241000,-1027.0,0.00027123,2]
[422443402,1778950241000,-1692.0,0.00027123,2]
[422443399,1778950241000,-1692.0,0.00027123,2]
[422443398,1778950241000,-1027.0,0.00027123,2]
[422443396,1778950241000,-150.0,0.00027123,2]
[422443397,1778950241000,-1692.0,0.00027123,2]
[422443400,1778950241000,-1027.0,0.00027123,2]
[422443403,1778950241000,-150.0,0.00027123,2]
[422443408,1778950241000,-1027.0,0.00027123,2]
[422443409,1778950241000,-1692.0,0.00027123,2]
[422443407,1778950241000,-1692.0,0.00027123,2]
[422443347,1778950241000,-150.0,0.00027123,2]
[422443382,1778950241000,-1027.0,0.00027123,2]
[422443374,1778950241000,-268.87677318,0.00027123,2]
[422443410,1778950241000,-1027.0,0.00027123,2]
[422443376,1778950241000,-513.31108128,0.00027123,2]
[422443345,1778950241000,-210.83263874,0.00027123,2]
[422443350,1778950241000,-150.0,0.00027123,2]
[422443348,1778950241000,-150.0,0.00027123,2]
[422443341,1778950241000,-150.0,0.00026941,2]
[422443352,1778950241000,-500.0,0.00027123,2]
[422443353,1778950241000,-500.0,0.00027123,2]
[422443355,1778950241000,-150.0,0.00027123,2]
[422443365,1778950241000,-284.63445457,0.00027123,2]
[422443354,1778950241000,-500.0,0.00027123,2]
[422443357,1778950241000,-590.8172916,0.00027123,2]
[422443356,1778950241000,-500.0,0.00027123,2]
[422443358,1778950241000,-150.0,0.00027123,2]
[422443360,1778950241000,-150.0,0.00027123,2]
[422443362,1778950241000,-500.0,0.00027123,2]
[422443366,1778950241000,-150.0,0.00027123,2]
[422443363,1778950241000,-500.0,0.00027123,2]
[422443375,1778950241000,-500.0,0.00027123,2]
[422443361,1778950241000,-299.41353446,0.00027123,2]
[422443372,1778950241000,-150.0,0.00027123,2]
[422443380,1778950241000,-1027.0,0.00027123,2]
[422443373,1778950241000,-150.0,0.00027123,2]
[422443371,1778950241000,-227.88889827,0.00027123,2]
[422443369,1778950241000,-213.52501256,0.00027123,2]
[422443377,1778950241000,-1692.0,0.00027123,2]
[422443370,1778950241000,-150.0,0.00027123,2]
[422443379,1778950241000,-1692.0,0.00027123,2]
[422443367,1778950241000,-150.0,0.00027123,2]
[422443368,1778950241000,-150.0,0.00027123,2]
[422443359,1778950241000,-553.49084739,0.00027123,2]
[422443364,1778950241000,-241.29142233,0.00027123,2]
[422443378,1778950241000,-1027.0,0.00027123,2]
[422443449,1778950242000,-274.49614436,0.00027397,30]
[422443455,1778950242000,-300.0,0.00027397,2]
[422443457,1778950242000,-809.22,0.00027397,10]
[422443448,1778950242000,-555.0,0.00027137,2]
[422443452,1778950242000,-1500.0,0.00027397,2]
[422443446,1778950242000,-530.77702258,0.00027123,2]
[422443456,1778950242000,-382.48,0.00027397,2]
[422443447,1778950242000,-504.0,0.00027137,2]
[422443443,1778950242000,-500.0,0.00027123,2]
[422443437,1778950242000,-500.0,0.00027123,2]
[422443453,1778950242000,-160.0,0.00027397,2]
[422443450,1778950242000,-150.0,0.00027397,2]
[422443438,1778950242000,-500.0,0.00027123,2]
[422443465,1778950242000,-151.0,0.00028267,2]
[422443458,1778950242000,-776.79,0.000274,7]
[422443459,1778950242000,-504.0,0.00027688,2]
[422443470,1778950242000,-1489.69,0.0002863,2]
[422443460,1778950242000,-500.0,0.000278,7]
[422443471,1778950242000,-672.81,0.0002863,2]
[422443463,1778950242000,-166.82,0.00028052,2]
[422443461,1778950242000,-314.06,0.000278,7]
[422443469,1778950242000,-268.26,0.0002863,2]
[422443466,1778950242000,-274.49614436,0.00028311,30]
[422443468,1778950242000,-672.28,0.0002863,2]
[422443462,1778950242000,-340.11462117,0.00028033,2]
[422443464,1778950242000,-504.0,0.00028238,3]
[422443467,1778950242000,-218.34,0.0002863,2]
[422443439,1778950242000,-500.0,0.00027123,2]
[422443454,1778950242000,-199.47,0.00027397,2]
[422443442,1778950242000,-500.0,0.00027123,2]
[422443423,1778950242000,-1027.0,0.00027123,2]
[422443440,1778950242000,-500.0,0.00027123,2]
[422443473,1778950242000,-218.34,0.00028661,7]
[422443419,1778950242000,-1027.0,0.00027123,2]
[422443418,1778950242000,-503.52293091,0.00027123,2]
[422443411,1778950242000,-1692.0,0.00027123,2]
[422443412,1778950242000,-1027.0,0.00027123,2]
[422443416,1778950242000,-1027.0,0.00027123,2]
[422443417,1778950242000,-1692.0,0.00027123,2]
[422443413,1778950242000,-500.0,0.00027123,2]
[422443415,1778950242000,-500.0,0.00027123,2]
[422443414,1778950242000,-1027.0,0.00027123,2]
[422443431,1778950242000,-1027.0,0.00027123,2]
[422443421,1778950242000,-1027.0,0.00027123,2]
[422443432,1778950242000,-1705.36501334,0.00027123,2]
[422443441,1778950242000,-500.0,0.00027123,2]
[422443420,1778950242000,-1692.0,0.00027123,2]
[422443424,1778950242000,-1692.0,0.00027123,2]
[422443425,1778950242000,-1027.0,0.00027123,2]
[422443428,1778950242000,-1692.0,0.00027123,2]
[422443429,1778950242000,-1027.0,0.00027123,2]
[422443430,1778950242000,-1692.0,0.00027123,2]
[422443422,1778950242000,-1692.0,0.00027123,2]
[422443426,1778950242000,-1692.0,0.00027123,2]
[422443434,1778950242000,-500.0,0.00027123,2]
[422443435,1778950242000,-500.0,0.00027123,2]
[422443436,1778950242000,-500.0,0.00027123,2]
[422443444,1778950242000,-500.0,0.00027123,2]
[422443433,1778950242000,-1033.54383866,0.00027123,2]
[422443445,1778950242000,-500.0,0.00027123,2]
[422443427,1778950242000,-1027.0,0.00027123,2]
[422443483,1778950242000,-672.81,0.00028693,30]
[422443451,1778950242000,-218.44753254,0.00027397,2]
[422443474,1778950242000,-672.28,0.00028661,7]
[422443507,1778950242000,-1489.69,0.0002882,2]
[422443504,1778950242000,-218.34,0.0002882,2]
[422443511,1778950242000,-672.28,0.00028852,7]
[422443513,1778950242000,-1489.69,0.00028852,7]
[422443514,1778950242000,-672.81,0.00028852,7]
[422443518,1778950242000,-672.28,0.00028883,30]
[422443515,1778950242000,-217.75,0.00028852,7]
[422443521,1778950242000,-672.81,0.00028883,30]
[422443520,1778950242000,-1489.69,0.00028883,30]
[422443512,1778950242000,-268.26,0.00028852,7]
[422443517,1778950242000,-218.34,0.00028883,30]
[422443516,1778950242000,-1491.44,0.00028883,30]
[422443510,1778950242000,-218.34,0.00028852,7]
[422443505,1778950242000,-672.28,0.0002882,2]
[422443522,1778950242000,-217.75,0.00028883,30]
[422443523,1778950242000,-1491.44,0.00028915,2]
[422443528,1778950242000,-672.81,0.00028915,2]
[422443524,1778950242000,-218.34,0.00028915,2]
[422443527,1778950242000,-1489.69,0.00028915,2]
[422443534,1778950242000,-268.26,0.00028947,7]
[422443526,1778950242000,-268.26,0.00028915,2]
[422443532,1778950242000,-218.34,0.00028947,7]
[422443535,1778950242000,-1489.69,0.00028947,7]
[422443530,1778950242000,-42364.93172562,0.00028943,2]
[422443533,1778950242000,-672.28,0.00028947,7]
[422443529,1778950242000,-217.75,0.00028915,2]
[422443531,1778950242000,-1491.44,0.00028947,7]
[422443537,1778950242000,-217.75,0.00028947,7]
[422443525,1778950242000,-672.28,0.00028915,2]
[422443506,1778950242000,-268.26,0.0002882,2]
[422443519,1778950242000,-268.26,0.00028883,30]
[422443509,1778950242000,-217.75,0.0002882,2]
[422443472,1778950242000,-217.75,0.0002863,2]
[422443477,1778950242000,-672.81,0.00028661,7]
[422443475,1778950242000,-268.26,0.00028661,7]
[422443476,1778950242000,-1489.69,0.00028661,7]
[422443480,1778950242000,-672.28,0.00028693,30]
[422443481,1778950242000,-268.26,0.00028693,30]
[422443478,1778950242000,-217.75,0.00028661,7]
[422443503,1778950242000,-504.0,0.00028789,3]
[422443482,1778950242000,-1489.69,0.00028693,30]
[422443486,1778950242000,-672.28,0.00028725,2]
[422443488,1778950242000,-1489.69,0.00028725,2]
[422443496,1778950242000,-217.75,0.00028756,7]
[422443487,1778950242000,-268.26,0.00028725,2]
[422443485,1778950242000,-218.34,0.00028725,2]
[422443489,1778950242000,-672.81,0.00028725,2]
[422443479,1778950242000,-218.34,0.00028693,30]
[422443536,1778950242000,-672.81,0.00028947,7]
[422443490,1778950242000,-217.75,0.00028725,2]
[422443502,1778950242000,-217.75,0.00028788,30]
[422443501,1778950242000,-672.81,0.00028788,30]
[422443500,1778950242000,-1489.69,0.00028788,30]
[422443508,1778950242000,-672.81,0.0002882,2]
[422443497,1778950242000,-218.34,0.00028788,30]
[422443499,1778950242000,-268.26,0.00028788,30]
[422443484,1778950242000,-217.75,0.00028693,30]
[422443498,1778950242000,-672.28,0.00028788,30]
[422443495,1778950242000,-672.81,0.00028756,7]
[422443494,1778950242000,-1489.69,0.00028756,7]
[422443491,1778950242000,-218.34,0.00028756,7]
[422443493,1778950242000,-268.26,0.00028756,7]
[422443492,1778950242000,-672.28,0.00028756,7]
[422443553,1778950243000,-218.34,0.00029042,7]
[422443551,1778950243000,-217.75,0.0002901,2]
[422443552,1778950243000,-1491.44,0.00029042,7]
[422443549,1778950243000,-1489.69,0.0002901,2]
[422443544,1778950243000,-217.75,0.00028979,30]
[422443543,1778950243000,-672.81,0.00028979,30]
[422443542,1778950243000,-1489.69,0.00028979,30]
[422443539,1778950243000,-218.34,0.00028979,30]
[422443541,1778950243000,-268.26,0.00028979,30]
[422443561,1778950243000,-672.28,0.00029074,30]
[422443548,1778950243000,-268.26,0.0002901,2]
[422443538,1778950243000,-1491.44,0.00028979,30]
[422443547,1778950243000,-672.28,0.0002901,2]
[422443545,1778950243000,-1491.44,0.0002901,2]
[422443540,1778950243000,-672.28,0.00028979,30]
[422443546,1778950243000,-218.34,0.0002901,2]
[422443554,1778950243000,-672.28,0.00029042,7]
[422443555,1778950243000,-268.26,0.00029042,7]
[422443556,1778950243000,-1489.69,0.00029042,7]
[422443568,1778950243000,-1491.44,0.00029105,2]
[422443577,1778950243000,-672.81,0.00029105,2]
[422443566,1778950243000,-4523.3975716,0.0002908,2]
[422443565,1778950243000,-217.75,0.00029074,30]
[422443564,1778950243000,-672.81,0.00029074,30]
[422443562,1778950243000,-268.26,0.00029074,30]
[422443579,1778950243000,-217.75,0.00029105,2]
[422443580,1778950243000,-1491.44,0.00029137,7]
[422443574,1778950243000,-268.26,0.00029105,2]